[Event "Titled Tuesday Blitz July 26 Early 2022"]
[White "Przybylski, Wojciech"]
[Black "Blanco Ronquillo, Humberto L."]
[WhiteFideId "1117599"]
[BlackFideId "3504239"]
[WhiteElo "2133"]
[BlackElo "2423"]
[Result "0-1"]
[Round "05"]
[TimeControl "180+1"]
[Date "2022.07.27"]
[WhiteClock "0:00:03"]
[BlackClock "0:00:24"]

1. d4 {[%clk 0:03:00]}  d5 {[%clk 0:02:59]} 2. Nf3 {[%clk 0:02:54]}  e6 {[%clk 0:02:56]} 3. g3 {[%clk 0:02:41]}  Nf6 {[%clk 0:02:44]} 4. Bg2 {[%clk 0:02:41]}  b5 {[%clk 0:02:40]} 5. O-O {[%clk 0:02:40]}  Bb7 {[%clk 0:02:40]} 6. Nbd2 {[%clk 0:02:36]}  c5 {[%clk 0:02:38]} 7. Re1 {[%clk 0:02:35]}  Nc6 {[%clk 0:02:27]} 8. a4 {[%clk 0:02:27]}  b4 {[%clk 0:02:16]} 9. dxc5 {[%clk 0:02:26]}  Bxc5 {[%clk 0:02:16]} 10. Nb3 {[%clk 0:02:26]}  Bb6 {[%clk 0:02:14]} 11. Bf4 {[%clk 0:02:21]}  Ne4 {[%clk 0:01:59]} 12. Nbd4 {[%clk 0:02:13]}  Nxd4 {[%clk 0:01:57]} 13. Nxd4 {[%clk 0:02:12]}  Qf6 {[%clk 0:01:58]} 14. Be3 {[%clk 0:01:48]}  Nd6 {[%clk 0:01:44]} 15. a5 {[%clk 0:01:45]}  Bxd4 {[%clk 0:01:38]} 16. Qxd4 {[%clk 0:01:38]}  Nc4 {[%clk 0:00:53]} 17. Qxf6 {[%clk 0:01:37]}  gxf6 {[%clk 0:00:54]} 18. Bh6 {[%clk 0:01:34]}  Ke7 {[%clk 0:00:53]} 19. b3 {[%clk 0:01:25]}  Nd6 {[%clk 0:00:46]} 20. Bd2 {[%clk 0:01:23]}  Rhc8 {[%clk 0:00:43]} 21. Rac1 {[%clk 0:01:10]}  Ba6 {[%clk 0:00:33]} 22. Bxb4 {[%clk 0:01:08]}  Rab8 {[%clk 0:00:34]} 23. Ba3 {[%clk 0:01:00]}  Kd7 {[%clk 0:00:33]} 24. Bb2 {[%clk 0:00:37]}  f5 {[%clk 0:00:32]} 25. Bd4 {[%clk 0:00:30]}  Nb5 {[%clk 0:00:30]} 26. Be5 {[%clk 0:00:29]}  Nd6 {[%clk 0:00:29]} 27. c4 {[%clk 0:00:27]}  Rxb3 {[%clk 0:00:27]} 28. cxd5 {[%clk 0:00:26]}  Rxc1 {[%clk 0:00:26]} 29. Rxc1 {[%clk 0:00:26]}  Bxe2 {[%clk 0:00:26]} 30. dxe6+ {[%clk 0:00:26]}  fxe6 {[%clk 0:00:26]} 31. Bc6+ {[%clk 0:00:23]}  Ke7 {[%clk 0:00:25]} 32. Ba4 {[%clk 0:00:18]}  Rb4 {[%clk 0:00:22]} 33. Rc7+ {[%clk 0:00:12]}  Kd8 {[%clk 0:00:17]} 34. Rd7+ {[%clk 0:00:12]}  Kc8 {[%clk 0:00:16]} 35. Rxd6 {[%clk 0:00:11]}  Rxa4 {[%clk 0:00:16]} 36. Kg2 {[%clk 0:00:09]}  Bc4 {[%clk 0:00:15]} 37. f3 {[%clk 0:00:07]}  Bd5 {[%clk 0:00:14]} 38. Bf6 {[%clk 0:00:06]}  Kc7 {[%clk 0:00:14]} 39. Rd8 {[%clk 0:00:05]}  Rxa5 {[%clk 0:00:13]} 40. Rh8 {[%clk 0:00:05]}  Ra2+ {[%clk 0:00:13]} 41. Kh3 {[%clk 0:00:05]}  Bxf3 {[%clk 0:00:13]} 42. Rxh7+ {[%clk 0:00:05]}  Kc6 {[%clk 0:00:14]} 43. Bd4 {[%clk 0:00:05]}  Bg4+ {[%clk 0:00:14]} 44. Kh4 {[%clk 0:00:03]}  Rxh2+ {[%clk 0:00:14]} 45. Kg5 {[%clk 0:00:04]}  Rxh7 {[%clk 0:00:15]} 46. Kf4 {[%clk 0:00:05]}  Rd7 {[%clk 0:00:15]} 47. Bf2 {[%clk 0:00:04]}  Kd5 {[%clk 0:00:14]} 48. Kg5 {[%clk 0:00:03]}  e5 {[%clk 0:00:15]} 49. Kf6 {[%clk 0:00:03]}  Rb7 {[%clk 0:00:16]} 50. Kg5 {[%clk 0:00:03]}  a5 {[%clk 0:00:17]} 51. Kf6 {[%clk 0:00:03]}  a4 {[%clk 0:00:17]} 52. Be1 {[%clk 0:00:03]}  a3 {[%clk 0:00:18]} 53. Bc3 {[%clk 0:00:04]}  a2 {[%clk 0:00:19]} 54. Bxe5 {[%clk 0:00:04]}  Rb6+ {[%clk 0:00:19]} 55. Kg5 {[%clk 0:00:04]}  Re6 {[%clk 0:00:17]} 56. Bb2 {[%clk 0:00:03]}  Ke4 {[%clk 0:00:17]} 57. Kh4 {[%clk 0:00:03]}  Rc6 {[%clk 0:00:18]} 58. Ba1 {[%clk 0:00:02]}  Rc2 {[%clk 0:00:19]} 59. Bf6 {[%clk 0:00:02]}  Rh2+ {[%clk 0:00:20]} 60. Kg5 {[%clk 0:00:02]}  Rh1 {[%clk 0:00:20]} 61. Bg7 {[%clk 0:00:02]}  a1=Q {[%clk 0:00:21]} 62. Bxa1 {[%clk 0:00:02]}  Rxa1 {[%clk 0:00:22]} 63. Kh4 {[%clk 0:00:02]}  Ra6 {[%clk 0:00:22]} 64. Kg5 {[%clk 0:00:02]}  Rb6 {[%clk 0:00:22]} 65. Kh4 {[%clk 0:00:02]}  Kf3 {[%clk 0:00:22]} 66. Kg5 {[%clk 0:00:02]}  Rb5 {[%clk 0:00:23]} 67. Kh4 {[%clk 0:00:03]}  f4 {[%clk 0:00:23]} 68. gxf4 {[%clk 0:00:03]}  Rh5# {[%clk 0:00:24]} 0-1


[Site "https://www.chess.com"]

[Event "Titled Tuesday Blitz July 26 Early 2022"]
[White "Sarana, Alexey"]
[Black "Lubbe, Nikolas"]
[WhiteFideId "24133795"]
[BlackFideId "4694031"]
[WhiteElo "2666"]
[BlackElo "2447"]
[Result "1/2-1/2"]
[Round "05"]
[TimeControl "180+1"]
[Date "2022.07.26"]
[WhiteClock "0:00:09"]
[BlackClock "0:00:12"]

1. c4 {[%clk 0:03:00]}  e6 {[%clk 0:02:59]} 2. Nc3 {[%clk 0:02:58]}  d5 {[%clk 0:03:00]} 3. d4 {[%clk 0:02:59]}  Nf6 {[%clk 0:03:00]} 4. cxd5 {[%clk 0:02:58]}  exd5 {[%clk 0:03:00]} 5. Bg5 {[%clk 0:02:58]}  Be7 {[%clk 0:03:00]} 6. e3 {[%clk 0:02:59]}  O-O {[%clk 0:03:01]} 7. Bd3 {[%clk 0:03:00]}  Re8 {[%clk 0:03:01]} 8. Qc2 {[%clk 0:02:54]}  h6 {[%clk 0:03:01]} 9. Bh4 {[%clk 0:02:53]}  c5 {[%clk 0:03:02]} 10. Nge2 {[%clk 0:02:50]}  Nc6 {[%clk 0:02:59]} 11. dxc5 {[%clk 0:02:42]}  d4 {[%clk 0:02:59]} 12. exd4 {[%clk 0:02:19]}  Nxd4 {[%clk 0:02:58]} 13. Qd1 {[%clk 0:02:19]}  Nxe2 {[%clk 0:02:52]} 14. Bxe2 {[%clk 0:02:18]}  Qxd1+ {[%clk 0:02:20]} 15. Rxd1 {[%clk 0:02:19]}  Bxc5 {[%clk 0:02:20]} 16. O-O {[%clk 0:02:16]}  Be6 {[%clk 0:02:18]} 17. Bb5 {[%clk 0:02:14]}  Red8 {[%clk 0:02:17]} 18. Ne4 {[%clk 0:01:53]}  Be7 {[%clk 0:02:08]} 19. Nxf6+ {[%clk 0:01:47]}  Bxf6 {[%clk 0:02:08]} 20. Bxf6 {[%clk 0:01:47]}  gxf6 {[%clk 0:02:09]} 21. a3 {[%clk 0:01:47]}  Rac8 {[%clk 0:02:05]} 22. Ba4 {[%clk 0:01:41]}  Kg7 {[%clk 0:01:54]} 23. f3 {[%clk 0:01:36]}  f5 {[%clk 0:01:48]} 24. Kf2 {[%clk 0:01:34]}  Kf6 {[%clk 0:01:46]} 25. Ke3 {[%clk 0:01:33]}  f4+ {[%clk 0:01:34]} 26. Kf2 {[%clk 0:01:33]}  Rxd1 {[%clk 0:01:32]} 27. Rxd1 {[%clk 0:01:33]}  Rc4 {[%clk 0:01:31]} 28. Bb3 {[%clk 0:01:28]}  Rc6 {[%clk 0:01:30]} 29. Ba4 {[%clk 0:01:14]}  Rc4 {[%clk 0:01:26]} 30. Bb3 {[%clk 0:01:10]}  Rc5 {[%clk 0:01:22]} 31. Bxe6 {[%clk 0:01:02]}  Rc2+ {[%clk 0:01:11]} 32. Kg1 {[%clk 0:01:02]}  fxe6 {[%clk 0:01:08]} 33. Rd4 {[%clk 0:00:59]}  e5 {[%clk 0:01:00]} 34. Rd6+ {[%clk 0:00:59]}  Kf5 {[%clk 0:00:55]} 35. h4 {[%clk 0:00:56]}  Rxb2 {[%clk 0:00:51]} 36. Rxh6 {[%clk 0:00:57]}  a5 {[%clk 0:00:46]} 37. a4 {[%clk 0:00:56]}  Rb4 {[%clk 0:00:46]} 38. Rh7 {[%clk 0:00:55]}  b6 {[%clk 0:00:45]} 39. Rh6 {[%clk 0:00:55]}  Rxa4 {[%clk 0:00:36]} 40. Rxb6 {[%clk 0:00:54]}  Rb4 {[%clk 0:00:37]} 41. Ra6 {[%clk 0:00:54]}  a4 {[%clk 0:00:24]} 42. Kh2 {[%clk 0:00:55]}  Rd4 {[%clk 0:00:20]} 43. Kh3 {[%clk 0:00:47]}  e4 {[%clk 0:00:20]} 44. Ra5+ {[%clk 0:00:43]}  Kg6 {[%clk 0:00:20]} 45. h5+ {[%clk 0:00:30]}  Kh6 {[%clk 0:00:20]} 46. fxe4 {[%clk 0:00:30]}  Rxe4 {[%clk 0:00:20]} 47. Kg4 {[%clk 0:00:31]}  Rc4 {[%clk 0:00:19]} 48. Ra6+ {[%clk 0:00:31]}  Kh7 {[%clk 0:00:20]} 49. Kg5 {[%clk 0:00:31]}  Rb4 {[%clk 0:00:19]} 50. Ra7+ {[%clk 0:00:31]}  Kh8 {[%clk 0:00:19]} 51. h6 {[%clk 0:00:31]}  Rc4 {[%clk 0:00:18]} 52. Ra6 {[%clk 0:00:30]}  Rb4 {[%clk 0:00:18]} 53. Kg6 {[%clk 0:00:30]}  Rb8 {[%clk 0:00:18]} 54. h7 {[%clk 0:00:22]}  a3 {[%clk 0:00:15]} 55. Kh6 {[%clk 0:00:18]}  Rf8 {[%clk 0:00:12]} 56. Rxa3 {[%clk 0:00:16]}  Rf6+ {[%clk 0:00:13]} 57. Kg5 {[%clk 0:00:15]}  Rf7 {[%clk 0:00:13]} 58. Ra6 {[%clk 0:00:03]}  Kxh7 {[%clk 0:00:12]} 59. Rh6+ {[%clk 0:00:02]}  Kg7 {[%clk 0:00:12]} 60. Rg6+ {[%clk 0:00:03]}  Kh7 {[%clk 0:00:12]} 61. Rh6+ {[%clk 0:00:02]}  Kg7 {[%clk 0:00:12]} 62. Rh3 {[%clk 0:00:03]}  Kg8 {[%clk 0:00:10]} 63. Kg4 {[%clk 0:00:02]}  Rg7+ {[%clk 0:00:08]} 64. Kf3 {[%clk 0:00:03]}  Kf7 {[%clk 0:00:08]} 65. Rh4 {[%clk 0:00:03]}  Rg3+ {[%clk 0:00:06]} 66. Kf2 {[%clk 0:00:03]}  Rg6 {[%clk 0:00:07]} 67. Rxf4+ {[%clk 0:00:03]}  Kg7 {[%clk 0:00:07]} 68. Kf3 {[%clk 0:00:04]}  Rb6 {[%clk 0:00:08]} 69. Kg4 {[%clk 0:00:04]}  Ra6 {[%clk 0:00:08]} 70. Kh4 {[%clk 0:00:04]}  Rb6 {[%clk 0:00:08]} 71. Rf5 {[%clk 0:00:05]}  Rc6 {[%clk 0:00:09]} 72. Rg5+ {[%clk 0:00:05]}  Kh6 {[%clk 0:00:09]} 73. g3 {[%clk 0:00:04]}  Rd6 {[%clk 0:00:08]} 74. Ra5 {[%clk 0:00:04]}  Rc6 {[%clk 0:00:09]} 75. Rh5+ {[%clk 0:00:05]}  Kg6 {[%clk 0:00:09]} 76. Rh8 {[%clk 0:00:05]}  Kg7 {[%clk 0:00:09]} 77. Rd8 {[%clk 0:00:05]}  Rc4+ {[%clk 0:00:09]} 78. g4 {[%clk 0:00:04]}  Rc1 {[%clk 0:00:09]} 79. Kh5 {[%clk 0:00:05]}  Rh1+ {[%clk 0:00:08]} 80. Kg5 {[%clk 0:00:05]}  Rb1 {[%clk 0:00:09]} 81. Rd7+ {[%clk 0:00:05]}  Kg8 {[%clk 0:00:10]} 82. Rd6 {[%clk 0:00:05]}  Rb7 {[%clk 0:00:10]} 83. Kh6 {[%clk 0:00:05]}  Rh7+ {[%clk 0:00:10]} 84. Kg6 {[%clk 0:00:04]}  Rg7+ {[%clk 0:00:10]} 85. Kh5 {[%clk 0:00:05]}  Rh7+ {[%clk 0:00:11]} 86. Rh6 {[%clk 0:00:05]}  Ra7 {[%clk 0:00:10]} 87. Rf6 {[%clk 0:00:05]}  Kg7 {[%clk 0:00:10]} 88. Rc6 {[%clk 0:00:03]}  Kh7 {[%clk 0:00:09]} 89. g5 {[%clk 0:00:03]}  Kg7 {[%clk 0:00:09]} 90. Rc8 {[%clk 0:00:03]}  Kh7 {[%clk 0:00:09]} 91. Rc6 {[%clk 0:00:03]}  Kg7 {[%clk 0:00:09]} 92. Rh6 {[%clk 0:00:04]}  Rb7 {[%clk 0:00:09]} 93. Rg6+ {[%clk 0:00:03]}  Kh7 {[%clk 0:00:09]} 94. Re6 {[%clk 0:00:04]}  Kg7 {[%clk 0:00:10]} 95. Re5 {[%clk 0:00:04]}  Kh7 {[%clk 0:00:10]} 96. g6+ {[%clk 0:00:04]}  Kg7 {[%clk 0:00:09]} 97. Kg5 {[%clk 0:00:05]}  Rb1 {[%clk 0:00:09]} 98. Re7+ {[%clk 0:00:05]}  Kg8 {[%clk 0:00:09]} 99. Re4 {[%clk 0:00:04]}  Rg1+ {[%clk 0:00:10]} 100. Rg4 {[%clk 0:00:05]}  Rxg4+ {[%clk 0:00:10]} 101. Kxg4 {[%clk 0:00:05]}  Kg7 {[%clk 0:00:11]} 102. Kf5 {[%clk 0:00:06]}  Kg8 {[%clk 0:00:11]} 103. Kf6 {[%clk 0:00:07]}  Kf8 {[%clk 0:00:11]} 104. g7+ {[%clk 0:00:08]}  Kg8 {[%clk 0:00:12]} 105. Ke7 {[%clk 0:00:09]}  Kxg7 {[%clk 0:00:12]} 1/2-1/2


[Site "https://www.chess.com"]

[Event "Titled Tuesday Blitz July 26 Early 2022"]
[White "Seo, Jung Min"]
[Black "Zemlyanskii, Ivan"]
[WhiteFideId "1734687"]
[BlackFideId "24249971"]
[WhiteElo "2414"]
[BlackElo "1815"]
[Result "1-0"]
[Round "05"]
[TimeControl "180+1"]
[Date "2022.07.26"]
[WhiteClock "0:00:45"]
[BlackClock "0:00:20"]

1. Nf3 {[%clk 0:03:00]}  Nf6 {[%clk 0:02:58]} 2. c4 {[%clk 0:03:00]}  b6 {[%clk 0:02:58]} 3. d4 {[%clk 0:03:00]}  e6 {[%clk 0:02:58]} 4. a3 {[%clk 0:02:57]}  Bb7 {[%clk 0:02:56]} 5. Nc3 {[%clk 0:02:57]}  d5 {[%clk 0:02:57]} 6. cxd5 {[%clk 0:02:55]}  Nxd5 {[%clk 0:02:54]} 7. Qc2 {[%clk 0:02:55]}  Be7 {[%clk 0:02:51]} 8. e4 {[%clk 0:02:55]}  Nxc3 {[%clk 0:02:49]} 9. bxc3 {[%clk 0:02:56]}  O-O {[%clk 0:02:49]} 10. Bd3 {[%clk 0:02:56]}  c5 {[%clk 0:02:49]} 11. O-O {[%clk 0:02:56]}  Qc7 {[%clk 0:02:49]} 12. Qe2 {[%clk 0:02:43]}  Nd7 {[%clk 0:02:46]} 13. a4 {[%clk 0:02:38]}  a6 {[%clk 0:02:30]} 14. Re1 {[%clk 0:02:34]}  Rfd8 {[%clk 0:02:28]} 15. Bb2 {[%clk 0:02:20]}  Nf6 {[%clk 0:02:17]} 16. h3 {[%clk 0:02:15]}  Nh5 {[%clk 0:02:08]} 17. Qe3 {[%clk 0:02:09]}  Nf4 {[%clk 0:02:03]} 18. Bf1 {[%clk 0:02:09]}  Rac8 {[%clk 0:02:01]} 19. Ne5 {[%clk 0:02:06]}  Ng6 {[%clk 0:02:00]} 20. Nf3 {[%clk 0:02:00]}  h6 {[%clk 0:01:46]} 21. g3 {[%clk 0:01:56]}  Qd7 {[%clk 0:01:32]} 22. h4 {[%clk 0:01:55]}  Bf8 {[%clk 0:01:24]} 23. h5 {[%clk 0:01:54]}  Ne7 {[%clk 0:01:24]} 24. Ne5 {[%clk 0:01:53]}  Qc7 {[%clk 0:01:23]} 25. Bh3 {[%clk 0:01:49]}  Nc6 {[%clk 0:01:20]} 26. Nf3 {[%clk 0:01:49]}  Na5 {[%clk 0:01:19]} 27. Ne5 {[%clk 0:01:43]}  cxd4 {[%clk 0:01:13]} 28. cxd4 {[%clk 0:01:43]}  Nc4 {[%clk 0:01:06]} 29. Nxc4 {[%clk 0:01:43]}  Qxc4 {[%clk 0:01:07]} 30. d5 {[%clk 0:01:37]}  exd5 {[%clk 0:01:06]} 31. Bxc8 {[%clk 0:01:36]}  Bxc8 {[%clk 0:00:59]} 32. Qxb6 {[%clk 0:01:33]}  Rd6 {[%clk 0:00:54]} 33. Qe3 {[%clk 0:01:26]}  dxe4 {[%clk 0:00:50]} 34. Rac1 {[%clk 0:01:22]}  Qe6 {[%clk 0:00:50]} 35. Qxe4 {[%clk 0:01:22]}  Qd7 {[%clk 0:00:50]} 36. Qe8 {[%clk 0:01:21]}  Bb7 {[%clk 0:00:41]} 37. Qxd7 {[%clk 0:01:11]}  Rxd7 {[%clk 0:00:42]} 38. Re8 {[%clk 0:01:11]}  Rd3 {[%clk 0:00:37]} 39. Bc3 {[%clk 0:01:02]}  Bc6 {[%clk 0:00:32]} 40. Rc8 {[%clk 0:01:01]}  Bd7 {[%clk 0:00:31]} 41. Rd8 {[%clk 0:01:01]}  Bf5 {[%clk 0:00:31]} 42. Rb8 {[%clk 0:00:52]}  Rxc3 {[%clk 0:00:18]} 43. Rxc3 {[%clk 0:00:52]}  g6 {[%clk 0:00:19]} 44. hxg6 {[%clk 0:00:50]}  fxg6 {[%clk 0:00:20]} 45. Rc6 {[%clk 0:00:48]}  Kf7 {[%clk 0:00:19]} 46. Rxa6 {[%clk 0:00:47]}  Be7 {[%clk 0:00:19]} 47. Ra7 {[%clk 0:00:46]}  Bd3 {[%clk 0:00:20]} 48. Rbb7 {[%clk 0:00:45]} 1-0


[Site "https://www.chess.com"]

[Event "Titled Tuesday Blitz July 26 Early 2022"]
[White "Shtyka, Sergey"]
[Black "Aldokhin, Ivan"]
[WhiteFideId "4138465"]
[BlackFideId "24115720"]
[WhiteElo "1995"]
[BlackElo "2246"]
[Result "1-0"]
[Round "05"]
[TimeControl "180+1"]
[Date "2022.07.27"]
[WhiteClock "0:00:05"]
[BlackClock "0:00:03"]

1. e4 {[%clk 0:02:54]}  c5 {[%clk 0:03:00]} 2. Nf3 {[%clk 0:02:53]}  e6 {[%clk 0:03:01]} 3. d4 {[%clk 0:02:52]}  cxd4 {[%clk 0:03:01]} 4. Nxd4 {[%clk 0:02:52]}  a6 {[%clk 0:03:02]} 5. Nc3 {[%clk 0:02:53]}  Qc7 {[%clk 0:03:02]} 6. Bd3 {[%clk 0:02:52]}  Nf6 {[%clk 0:03:02]} 7. O-O {[%clk 0:02:52]}  d6 {[%clk 0:03:03]} 8. Be3 {[%clk 0:02:51]}  b5 {[%clk 0:03:02]} 9. a3 {[%clk 0:02:51]}  Bb7 {[%clk 0:03:01]} 10. f4 {[%clk 0:02:51]}  Nbd7 {[%clk 0:03:01]} 11. Qf3 {[%clk 0:02:51]}  Be7 {[%clk 0:03:00]} 12. Rae1 {[%clk 0:02:51]}  h6 {[%clk 0:02:57]} 13. Kh1 {[%clk 0:02:50]}  g5 {[%clk 0:02:54]} 14. fxg5 {[%clk 0:02:42]}  hxg5 {[%clk 0:02:48]} 15. Bxg5 {[%clk 0:02:40]}  O-O-O {[%clk 0:02:43]} 16. Bf4 {[%clk 0:02:20]}  Ne5 {[%clk 0:02:38]} 17. Bxe5 {[%clk 0:02:00]}  dxe5 {[%clk 0:02:37]} 18. Nb3 {[%clk 0:01:59]}  Rdg8 {[%clk 0:02:07]} 19. h3 {[%clk 0:01:45]}  Nh5 {[%clk 0:02:04]} 20. Ne2 {[%clk 0:01:41]}  f5 {[%clk 0:02:01]} 21. Nd2 {[%clk 0:01:23]}  f4 {[%clk 0:01:54]} 22. b4 {[%clk 0:01:11]}  Bh4 {[%clk 0:01:41]} 23. Rc1 {[%clk 0:01:09]}  Ng3+ {[%clk 0:01:40]} 24. Nxg3 {[%clk 0:01:07]}  Rxg3 {[%clk 0:01:39]} 25. Qe2 {[%clk 0:01:03]}  Re3 {[%clk 0:01:03]} 26. Qg4 {[%clk 0:00:59]}  Kb8 {[%clk 0:00:46]} 27. Nf3 {[%clk 0:00:57]}  Bf6 {[%clk 0:00:37]} 28. Qxe6 {[%clk 0:00:57]}  Qg7 {[%clk 0:00:35]} 29. Rf2 {[%clk 0:00:45]}  Rxe4 {[%clk 0:00:21]} 30. Bxe4 {[%clk 0:00:41]}  Bxe4 {[%clk 0:00:21]} 31. Re1 {[%clk 0:00:30]}  Bb7 {[%clk 0:00:19]} 32. Rxe5 {[%clk 0:00:26]}  Bxe5 {[%clk 0:00:15]} 33. Qxe5+ {[%clk 0:00:26]}  Qxe5 {[%clk 0:00:15]} 34. Nxe5 {[%clk 0:00:26]}  Rxh3+ {[%clk 0:00:15]} 35. Kg1 {[%clk 0:00:26]}  Rc3 {[%clk 0:00:06]} 36. Nd3 {[%clk 0:00:21]}  Kc7 {[%clk 0:00:05]} 37. Nxf4 {[%clk 0:00:19]}  Rxa3 {[%clk 0:00:06]} 38. Kh2 {[%clk 0:00:16]}  Kd6 {[%clk 0:00:06]} 39. g4 {[%clk 0:00:15]}  Ra1 {[%clk 0:00:06]} 40. Kg3 {[%clk 0:00:11]}  Ke5 {[%clk 0:00:06]} 41. Nd3+ {[%clk 0:00:11]}  Kd4 {[%clk 0:00:05]} 42. g5 {[%clk 0:00:10]}  Be4 {[%clk 0:00:02]} 43. Kf4 {[%clk 0:00:07]}  Rg1 {[%clk 0:00:03]} 44. Nc5 {[%clk 0:00:05]}  Bd5 {[%clk 0:00:03]} 45. Rd2+ {[%clk 0:00:04]}  Kc4 {[%clk 0:00:03]} 46. Nxa6 {[%clk 0:00:04]}  Bc6 {[%clk 0:00:02]} 47. Rf2 {[%clk 0:00:04]}  Rh1 {[%clk 0:00:02]} 48. Kf5 {[%clk 0:00:04]}  Rg1 {[%clk 0:00:01]} 49. Kf6 {[%clk 0:00:04]}  Bd5 {[%clk 0:00:02]} 50. Nc7 {[%clk 0:00:04]}  Be4 {[%clk 0:00:02]} 51. Rf4 {[%clk 0:00:04]}  Kd4 {[%clk 0:00:02]} 52. Nxb5+ {[%clk 0:00:04]}  Ke3 {[%clk 0:00:02]} 53. Rxe4+ {[%clk 0:00:03]}  Kxe4 {[%clk 0:00:02]} 54. g6 {[%clk 0:00:03]}  Kd5 {[%clk 0:00:02]} 55. g7 {[%clk 0:00:03]}  Kc4 {[%clk 0:00:03]} 56. Nd6+ {[%clk 0:00:03]}  Kxb4 {[%clk 0:00:03]} 57. Ne4 {[%clk 0:00:03]}  Rg4 {[%clk 0:00:02]} 58. Ng5 {[%clk 0:00:03]}  Rf4+ {[%clk 0:00:02]} 59. Kg6 {[%clk 0:00:04]}  Kc3 {[%clk 0:00:01]} 60. g8=Q {[%clk 0:00:04]}  Kxc2 {[%clk 0:00:02]} 61. Qc8+ {[%clk 0:00:04]}  Kd2 {[%clk 0:00:02]} 62. Qd7+ {[%clk 0:00:05]}  Ke3 {[%clk 0:00:03]} 63. Qe6+ {[%clk 0:00:05]}  Kd3 {[%clk 0:00:03]} 64. Qd6+ {[%clk 0:00:05]}  Ke3 {[%clk 0:00:03]} 65. Qe5+ {[%clk 0:00:05]} 1-0


[Site "https://www.chess.com"]

[Event "Titled Tuesday Blitz July 26 Early 2022"]
[White "Shvedova, Alexandra"]
[Black "Jeet, Jain"]
[WhiteFideId "54154782"]
[BlackFideId "5073022"]
[WhiteElo "1896"]
[BlackElo "2055"]
[Result "0-1"]
[Round "05"]
[TimeControl "180+1"]
[Date "2022.07.27"]
[WhiteClock "0:00:24"]
[BlackClock "0:00:11"]

1. d4 {[%clk 0:03:00]}  Nf6 {[%clk 0:02:54]} 2. c4 {[%clk 0:03:01]}  b6 {[%clk 0:02:53]} 3. Nc3 {[%clk 0:02:58]}  d5 {[%clk 0:02:54]} 4. cxd5 {[%clk 0:02:54]}  Nxd5 {[%clk 0:02:55]} 5. e4 {[%clk 0:02:55]}  Nxc3 {[%clk 0:02:55]} 6. bxc3 {[%clk 0:02:56]}  e5 {[%clk 0:02:56]} 7. d5 {[%clk 0:02:52]}  Bc5 {[%clk 0:02:51]} 8. Nf3 {[%clk 0:02:51]}  Nd7 {[%clk 0:02:50]} 9. Bb5 {[%clk 0:02:49]}  O-O {[%clk 0:02:41]} 10. O-O {[%clk 0:02:47]}  Qe7 {[%clk 0:02:20]} 11. a4 {[%clk 0:02:23]}  a6 {[%clk 0:02:14]} 12. Bc6 {[%clk 0:02:23]}  Rb8 {[%clk 0:02:15]} 13. Qe2 {[%clk 0:02:17]}  h6 {[%clk 0:02:11]} 14. h3 {[%clk 0:02:13]}  Nf6 {[%clk 0:02:10]} 15. c4 {[%clk 0:01:53]}  Nh5 {[%clk 0:02:09]} 16. Be3 {[%clk 0:01:41]}  Nf4 {[%clk 0:02:07]} 17. Bxf4 {[%clk 0:01:39]}  exf4 {[%clk 0:02:08]} 18. e5 {[%clk 0:01:38]}  g5 {[%clk 0:02:06]} 19. Rad1 {[%clk 0:01:35]}  Bf5 {[%clk 0:01:57]} 20. Nh2 {[%clk 0:01:31]}  Bb4 {[%clk 0:01:51]} 21. Ng4 {[%clk 0:01:28]}  Kh7 {[%clk 0:01:40]} 22. Nf6+ {[%clk 0:01:25]}  Kg6 {[%clk 0:01:39]} 23. h4 {[%clk 0:01:18]}  g4 {[%clk 0:01:24]} 24. h5+ {[%clk 0:01:05]}  Kg7 {[%clk 0:01:23]} 25. Nxg4 {[%clk 0:01:04]}  Qg5 {[%clk 0:01:19]} 26. Nf6 {[%clk 0:01:01]}  Be7 {[%clk 0:01:10]} 27. Nd7 {[%clk 0:00:57]}  Bg4 {[%clk 0:01:01]} 28. f3 {[%clk 0:00:50]}  Bxd7 {[%clk 0:00:56]} 29. Bxd7 {[%clk 0:00:51]}  Bc5+ {[%clk 0:00:56]} 30. Kh1 {[%clk 0:00:44]}  Rbe8 {[%clk 0:00:45]} 31. Rde1 {[%clk 0:00:30]}  Be3 {[%clk 0:00:23]} 32. Bg4 {[%clk 0:00:28]}  Rxe5 {[%clk 0:00:21]} 33. Qb2 {[%clk 0:00:25]}  f6 {[%clk 0:00:20]} 34. Re2 {[%clk 0:00:21]}  Qh4+ {[%clk 0:00:20]} 35. Bh3 {[%clk 0:00:22]}  Rxh5 {[%clk 0:00:18]} 36. Rfe1 {[%clk 0:00:21]}  Qg3 {[%clk 0:00:18]} 37. Rxe3 {[%clk 0:00:19]}  fxe3 {[%clk 0:00:19]} 38. Rxe3 {[%clk 0:00:20]}  Rf7 {[%clk 0:00:16]} 39. Qd2 {[%clk 0:00:19]}  Re5 {[%clk 0:00:15]} 40. Re4 {[%clk 0:00:11]}  Rfe7 {[%clk 0:00:15]} 41. Be6 {[%clk 0:00:09]}  Rxe4 {[%clk 0:00:14]} 42. fxe4 {[%clk 0:00:10]}  Qh4+ {[%clk 0:00:14]} 43. Kg1 {[%clk 0:00:10]}  Qxe4 {[%clk 0:00:15]} 44. Qc3 {[%clk 0:00:09]}  Qe5 {[%clk 0:00:14]} 45. Qd3 {[%clk 0:00:08]}  f5 {[%clk 0:00:13]} 46. Qxf5 {[%clk 0:00:07]}  Qxf5 {[%clk 0:00:13]} 47. Bxf5 {[%clk 0:00:08]}  Re1+ {[%clk 0:00:13]} 48. Kf2 {[%clk 0:00:08]}  Ra1 {[%clk 0:00:14]} 49. Bc2 {[%clk 0:00:08]}  Ra2 {[%clk 0:00:14]} 50. c5 {[%clk 0:00:09]}  Rxc2+ {[%clk 0:00:15]} 51. Ke3 {[%clk 0:00:09]}  Rxc5 {[%clk 0:00:16]} 52. Kd4 {[%clk 0:00:10]}  Ra5 {[%clk 0:00:16]} 53. Ke5 {[%clk 0:00:11]}  Rxa4 {[%clk 0:00:17]} 54. g4 {[%clk 0:00:11]}  Rxg4 {[%clk 0:00:17]} 55. Ke6 {[%clk 0:00:12]}  Rg5 {[%clk 0:00:18]} 56. Kd7 {[%clk 0:00:12]}  Rxd5+ {[%clk 0:00:18]} 57. Kc8 {[%clk 0:00:13]}  b5 {[%clk 0:00:18]} 58. Kb7 {[%clk 0:00:14]}  c5 {[%clk 0:00:19]} 59. Ka7 {[%clk 0:00:14]}  c4 {[%clk 0:00:20]} 60. Kb8 {[%clk 0:00:15]}  b4 {[%clk 0:00:21]} 61. Ka8 {[%clk 0:00:16]}  a5 {[%clk 0:00:21]} 62. Kb8 {[%clk 0:00:17]}  a4 {[%clk 0:00:22]} 63. Ka8 {[%clk 0:00:18]}  b3 {[%clk 0:00:23]} 64. Kb8 {[%clk 0:00:19]}  a3 {[%clk 0:00:24]} 65. Kb7 {[%clk 0:00:18]}  c3 {[%clk 0:00:25]} 66. Ka7 {[%clk 0:00:19]}  c2 {[%clk 0:00:26]} 67. Kb7 {[%clk 0:00:20]}  Rd2 {[%clk 0:00:26]} 68. Ka7 {[%clk 0:00:21]}  b2 {[%clk 0:00:27]} 69. Kb8 {[%clk 0:00:21]}  a2 {[%clk 0:00:28]} 70. Kc8 {[%clk 0:00:22]}  h5 {[%clk 0:00:29]} 71. Kb8 {[%clk 0:00:22]}  h4 {[%clk 0:00:30]} 72. Ka8 {[%clk 0:00:23]}  h3 {[%clk 0:00:31]} 73. Kb7 {[%clk 0:00:24]}  h2 {[%clk 0:00:32]} 74. Kb8 {[%clk 0:00:25]}  h1=Q {[%clk 0:00:33]} 75. Ka7 {[%clk 0:00:26]}  b1=Q {[%clk 0:00:32]} 76. Ka6 {[%clk 0:00:25]}  c1=Q {[%clk 0:00:33]} 77. Ka5 {[%clk 0:00:26]}  Qb3 {[%clk 0:00:18]} 78. Ka6 {[%clk 0:00:24]}  Qba3+ {[%clk 0:00:16]} 79. Kb6 {[%clk 0:00:24]}  a1=Q {[%clk 0:00:16]} 80. Kb5 {[%clk 0:00:24]}  Qcb2+ {[%clk 0:00:15]} 81. Kc4 {[%clk 0:00:24]}  Qc6# {[%clk 0:00:11]} 0-1


[Site "https://www.chess.com"]